Cogmind - Beta 16 @@@ ROGUE MODE // 2025.11.12 @ 00:45:55 Player: Red Box Result: Destroyed by D-53 Grenadier with Mini Grenade Launcher Performance ------------- Evolutions (0) 0 Regions Visited (2) 400 Robots Destroyed (28) 140 Value Destroyed (614) 614 Prototype IDs (4) 80 Alien Tech Used (0) 0 Bonus (0) 0 TOTAL SCORE: 1234 Bonus ------- None Cogmind --------- Core Integrity 0/250 Matter 272/300 Energy 250/250 System Corruption 0% Temperature Cool (0) Movement Walking (190) Ox1 Location -10/Mines Parts ------- > --- POWER (1) -------- Ion Engine > --- PROPULSION (2) --- Aluminum Leg Aluminum Leg > --- UTILITY (2) ------ Large Storage Unit > --- WEAPON (2) ------- Beam Rifle Beam Rifle > --- INVENTORY (15) --- Light Treads Light Treads Compact Wheel Targeting Computer Shield Generator EM Shotgun EM Shotgun EM Shotgun EM Shotgun Beam Rifle Beam Rifle Shotgun Shotgun Grenade Launcher Maul Peak State ------------ > --- POWER ------------ Ion Engine > --- PROPULSION ------- Aluminum Leg Aluminum Leg > --- UTILITY ---------- Heat Sink Large Storage Unit > --- WEAPON ----------- Beam Rifle Beam Rifle > --- INVENTORY -------- Light Treads Light Treads Wheel Compact Wheel Targeting Computer Shield Generator EM Shotgun EM Shotgun EM Shotgun Beam Rifle Beam Rifle Grenade Launcher Maul [Rating: 11] Favorites ----------- Power Ion Engine Engine Ion Engine Propulsion Aluminum Leg Leg Aluminum Leg Utility Medium Storage Unit Device Heat Sink Storage Medium Storage Unit Protection Weapon Shielding Weapon EM Pulse Gun Energy Gun EM Pulse Gun Ballistic Gun Light Assault Rifle Launcher Grenade Launcher Special Weapon Mining Laser Impact Weapon Maul Build | -11 -10 -10 ------- Run | Yrd Mat Min Slots Evolved . | . . . Power . | . . . Propulsion . | . . . Utility . | . . . Weapon . | . . . Parts Attached 28 | 9 18 1 Power 3 | 2 1 . Engine 3 | 2 1 . Core . | . . . Reactor . | . . . Propulsion 6 | 2 4 . Treads . | . . . Leg 6 | 2 4 . Wheel . | . . . Hover . | . . . Flight . | . . . Utility 6 | 2 4 . Device 2 | 1 1 . Storage 3 | 1 2 . Processor . | . . . Hackware . | . . . Protection 1 | . 1 . Artifact . | . . . Weapon 13 | 3 9 1 Energy Gun 8 | 1 7 . Energy Cannon . | . . . Ballistic Gun 2 | 2 . . Ballistic Cannon . | . . . Launcher 1 | . . 1 Special Weapon 1 | . 1 . Impact Weapon 1 | . 1 . Slashing Weapon . | . . . Piercing Weapon . | . . . Special Melee Weapon . | . . . Unidentified Prototypes . | . . . Parts Lost 4 | . 3 1 Power . | . . . Propulsion . | . . . Utility 1 | . . 1 Weapon 3 | . 3 . Highest Loss Streak 1 | . 1 1 To Critical Strikes . | . . . Average Backups 10 | 5 10 15 Power . | . . . Propulsion 3 | 3 3 3 Utility 1 | . 1 2 Weapon 5 | 1 5 10 Tool/Special . | . . . Unused Backups 16 | . 3 13 Power . | . . . Propulsion 4 | . 1 3 Utility 2 | . . 2 Weapon 10 | . 2 8 Tool/Special . | . . . Average Slot Usage (%) 99 | . 99 100 Engine 14 | . 14 14 Leg 27 | . 27 28 Device 8 | . 8 14 Storage 14 | . 14 14 Protection 5 | . 5 . Energy Gun 26 | . 25 28 Peak Build Rating 11 | 9 11 11 Average Rating 8 | 5 8 10 On Entrance 6 | . 9 11 Avg Prop Armor Cover (%) . | . . . Naked Turns . | . . . Heaviest Build 32 | 12 32 32 Greatest Support 20 | 20 20 20 Greatest Overweight (x) 2 | 2 2 1 Average Overweight (x) . | . . 1 Largest Inventory Capacity 15 | 8 15 15 Average Capacity 11 | 7 11 15 Most Carried 15 | 7 15 15 Average Carried 10 | 6 10 15 Final Capacity 15 | 8 15 15 Final Carried 15 | 7 15 15 Class Distribution -------------------- 85% | Mutant 14% | Scavenger-Mutant Dominant Class ---------------- Mutant | -10/Materials Scavenger-Mutant | -10/Mines Resources | -11 -10 -10 ----------- Run | Yrd Mat Min Matter Collected 633 | 338 275 20 Remotely . | . . . Salvage Created 1048 | 161 866 21 Parts 59 | 17 38 4 Haulers Intercepted 2 | . 2 . Recyclers Shooed 1 | . 1 . Parts Field Recycled . | . . . Retrieved Matter . | . . . Parts Self-Destructed . | . . . Prevented . | . . . Parts Restored . | . . . Kills | -11 -10 -10 ------- Run | Yrd Mat Min Combat Hostiles Destroyed 15 | . 12 3 Guns 11 | . 10 1 AOE 3 | . 1 2 Classes Destroyed 7 | 2 4 1 Builder 1 | . 1 . Tunneler 5 | 5 . . Hauler 2 | . 2 . Recycler 2 | 1 1 . Watcher 3 | . 3 . Swarmer 3 | . . 3 Grunt 12 | . 12 . Best Kill Streak 4 | 2 4 3 Combat Bots Only 4 | . 4 3 Max Kills in Single Turn 1 | 1 1 1 Gunslinging . | . . . Exploded 1 | . 1 1 Melee . | . . . Uniques/NPCs Destroyed . | . . . Combat | -11 -10 -10 -------- Run | Yrd Mat Min Hostile Shots Fired 84 | . 59 25 Missed 19 | . 15 4 Hits 65 | . 44 21 Projectile 65 | . 44 21 AOE 10 | . . 10 Damage Taken 1047 | . 644 403 Core 254 | . 122 132 Absorbed by Shields . | . . . Redirected to Shielding 14 | . 14 . Regen/Repaired (Parts) 47 | . 47 . Core Remaining (%) 100 | 100 . . Volleys Fired 77 | 12 60 5 Largest 2 | 2 2 2 Hottest 112 | 40 112 112 Shots Fired 153 | 24 119 10 Gun 150 | 24 118 8 Cannon . | . . . Launcher 2 | . . 2 Special 1 | . 1 . Kinetic 32 | 24 8 . Thermal 15 | . 7 8 Explosive 2 | . . 2 Electromagnetic 104 | . 104 . Robot Hit Streak 12 | 6 12 10 Robot Miss Streak 5 | 2 4 5 Penetration Max . | . . . Secondary Targets 2 | . 2 . Max Gunslinging Chain 1 | . 1 . Shots Hit Robots 89 | 17 68 4 Core Hits 44 | 9 31 4 Critical Kills . | . . . Critical Parts Destroyed 1 | . 1 . Critical Strikes 3 | . 3 . Burn 1 | . 1 . Destroy 1 | . 1 . Corrupt 1 | . 1 . Melee Attacks 4 | . 4 . Impact 4 | . 4 . Slashing . | . . . Piercing . | . . . Sneak Attacks . | . . . Combat Hostiles . | . . . Follow-up Attacks . | . . . Damage Inflicted 1570 | 178 1252 140 Guns 1293 | 178 1051 64 Cannons . | . . . Explosions 277 | . 201 76 Melee . | . . . Ramming . | . . . Kinetic 220 | 178 42 . Thermal 313 | . 249 64 Explosive 76 | . . 76 Electromagnetic 961 | . 961 . Impact . | . . . Slashing . | . . . Piercing . | . . . Highest Corruption . | . . . Average Corruption . | . . . Corruption Purged . | . . . Corruption Blocked . | . . . Overload Shots . | . . . Overflow Damage 6 | . 6 . Projectiles . | . . . Explosions 6 | . 6 . Melee . | . . . Knockbacks . | . . . Impact . | . . . Kinetic . | . . . Secondary . | . . . Self-Inflicted Damage 68 | . 68 . Shots 2 | . 2 . Rammed . | . . . Targets Rammed . | . . . Kicked . | . . . Crushed . | . . . Highest Temperature 216 | . 216 42 Average Temperature 58 | . 60 20 Received Heat Transfer 327 | . 327 . Siege Activations . | . . . Martial Activations . | . . . Shielding Activations . | . . . Robots Disrupted . | . . . Combat Hostiles . | . . . Robots Corrupted 1 | . 1 . Combat Hostiles 1 | . 1 . Parts Fried 6 | . 6 . Impact Corruptions . | . . . Robots Melted . | . . . Combat Hostiles . | . . . Parts Melted 2 | . 1 1 Heat Transferred 533 | . 385 148 Parts Sabotaged . | . . . Parts Stolen . | . . . Parts Stripped . | . . . Power Chain Reactions 3 | . 3 . Alert | -11 -10 -10 ------- Run | Yrd Mat Min Maximum Alert Level . | . . . Low Security (%) 100 | 100 100 100 Level 1 . | . . . Level 2 . | . . . Level 3 . | . . . Level 4 . | . . . Level 5 . | . . . High Security . | . . . Max Security . | . . . Peak Influence 103 | 10 103 88 Initial 8 | . . 8 Average 23 | 1 25 29 Influence Increases 592 | 30 482 80 Destroy 0b10 Robot/C 300 | . 240 60 Destroy 0b10 Robot/NC 65 | 30 35 . Destroy Leader 70 | . 60 10 Successful Hack 54 | . 54 . Select Force Hacks 30 | . 30 . Disable Machine 30 | . 30 . Destroy Structure 28 | . 18 10 Lose Combat Pursuer 15 | . 15 . Influence Decreases 592 | 30 460 102 Entered New Map 14 | . . 14 Time Decay 548 | 30 430 88 Lost Part 30 | . 30 . Squads Dispatched 2 | . 2 . Investigation 2 | . 2 . Extermination . | . . . Reinforcement . | . . . Assault . | . . . Garrison . | . . . Intercept . | . . . Searches Triggered . | . . . Construction Impeded . | . . . Haulers Reinforced . | . . . Active Scanning Responses . | . . . Cargo Convoy Interrupts . | . . . Stealth | -11 -10 -10 --------- Run | Yrd Mat Min Distress Signals 1 | . 1 . Communications Jammed . | . . . Distress Signals . | . . . Times Spotted 28 | . 19 9 Peak Tracking Total 5 | . 4 5 Tactical Retreats 1 | . 1 . Traps | -11 -10 -10 ------- Run | Yrd Mat Min Traps Triggered . | . . . Indirectly . | . . . Trap Hack Attempts . | . . . Triggered . | . . . Disarmed . | . . . Reprogrammed . | . . . Reused . | . . . Traps Extracted . | . . . Installed . | . . . Triggered . | . . . Machines | -11 -10 -10 ---------- Run | Yrd Mat Min Machines Disabled 2 | . 2 . Max in Single Turn 1 | . 1 . Machines Repaired . | . . . Machines Dismantled . | . . . Machines Sabotaged . | . . . Overloaded Fab Kills . | . . . Hacking | -11 -10 -10 --------- Run | Yrd Mat Min Machines Accessed 10 | . 10 . Terminals 8 | . 8 . Fabricators . | . . . Repair Stations 1 | . 1 . Recycling Units 1 | . 1 . Scanalyzers . | . . . Garrison Access . | . . . Total Hacks 48 | . 48 . Successful 24 | . 24 . Failed 23 | . 23 . Catastrophic 3 | . 3 . Database Lockouts 1 | . 1 . Manual 30 | . 30 . Terminals 39 | . 39 . Fabricators . | . . . Repair Stations 6 | . 6 . Recycling Units 3 | . 3 . Scanalyzers . | . . . Garrison Access . | . . . Terminal Hacks 10 | . 10 . Robot Schematic 1 | . 1 . Robot Analysis 3 | . 3 . Prototype ID Bank 3 | . 3 . Terminal Index 1 | . 1 . Locate Traps 2 | . 2 . Fabricator Hacks . | . . . Repair Station Hacks 6 | . 6 . Scan Component 3 | . 3 . Repair 3 | . 3 . Recycling Unit Hacks 1 | . 1 . Retrieve Components 1 | . 1 . Scanalyzer . | . . . Garrison Access Hacks . | . . . Unauthorized Hacks 7 | . 7 . Terminals 5 | . 5 . Botnet 4 | . 4 . Operators 1 | . 1 . Fabricators . | . . . Repair Stations . | . . . Recycling Units 2 | . 2 . Mask 1 | . 1 . Tunnel 1 | . 1 . Scanalyzers . | . . . Garrison Access . | . . . Data Cores Recovered . | . . . Used . | . . . Hacking Detections 10 | . 10 . Full Trace Events 2 | . 2 . Feedback Events . | . . . Feedback Blocked . | . . . Robot Schematics Acquired 1 | . 1 . Robots Built . | . . . Authchips . | . . . Time . | . . . Total Robot Build Rating . | . . . Part Schematics Acquired . | . . . Parts Built . | . . . Authchips . | . . . Time . | . . . Total Part Build Rating . | . . . Part Studies Acquired . | . . . Parts Repaired 3 | . 3 . Time 78 | . 78 . Parts Recycled . | . . . Recycled Matter . | . . . Retrieved Matter . | . . . Retrieved Components 2 | . 2 . Parts Scanalyzed . | . . . Part Schematics Acquired . | . . . Parts Damaged . | . . . Bothacking | -11 -10 -10 ------------ Run | Yrd Mat Min Used RIF Installer . | . . . Robots Hacked . | . . . Non-combat . | . . . Combat . | . . . Robot Hacks Applied . | . . . Relay Couplers Released . | . . . Fabnet Peak Effective % . | . . . Robots Rewired . | . . . Allies Hacked . | . . . Hacks Repelled . | . . . Allies | -11 -10 -10 -------- Run | Yrd Mat Min Total Allies . | . . . Largest Group . | . . . Highest-Rated Group . | . . . Highest-Rated Ally . | . . . Total Orders . | . . . Ally Attacks . | . . . Total Damage . | . . . Kills . | . . . Allies Corrupted . | . . . Allies Melted . | . . . Intel | -11 -10 -10 ------- Run | Yrd Mat Min Active Infowar (turns) 675 | 27 648 . Terrain 675 | 27 648 . Robot Analysis Total 3 | . 3 . Derelict Logs Recovered . | . . . Drone Launches . | . . . Drone Recoveries . | . . . Exploration | -11 -10 -10 ------------- Run | Yrd Mat Min Turns Passed 2631 | 205 2162 264 Spaces Moved 1413 | 128 1164 121 Core 16 | 16 . . Treads . | . . . Legs 1397 | 112 1164 121 Wheels . | . . . Hover . | . . . Flight . | . . . Fastest Speed 50 | 50 120 190 Average Speed 145 | 115 143 190 Slowest Speed 260 | 150 260 190 Overloaded Moves . | . . . Propulsion Burnouts . | . . . Robots Hopped . | . . . Potential Cave-ins 1 | . . 1 Cave-ins Triggered . | . . . Exploration Rate (%) 43 | 6 99 26 Regions Visited 2 Branch Regions 1 Pre-discovered Areas 1 | . 1 . Known Exits Taken . | . . . Unknown Exits Taken 2 | 1 1 . Scrap Searched . | . . . Spaces Dug 5 | . 5 . Terrain Destroyed 31 | . 19 12 Melee 4 | . 4 . Projectile 1 | . 1 . AOE 26 | . 14 12 Terrain Rammed . | . . . Walls Destroyed . | . . . Machines Disabled . | . . . Actions | -11 -10 -10 --------- Run | Yrd Mat Min Total 1835 | 159 1531 145 Wait 241 | 3 221 17 Move 1411 | 127 1163 121 Hop . | . . . Pick Up 36 | 8 28 . Fast Attach 12 | 6 6 . Attach 9 | 1 8 . Detach 1 | . 1 . Swap 19 | 2 15 2 Drop 25 | . 25 . Fire 77 | 12 60 5 Melee 4 | . 4 . Ram . | . . . Kick . | . . . Crush . | . . . Escape Stasis . | . . . Rewire . | . . . Trap . | . . . Miscellaneous . | . . . Route ------- -11/Scrapyard -10/Materials (discovered 5 exits: [*Mat x3] / [*Min] / [*Sub]) -10/Mines History --------- Turn | Location | Event 11 | -11/Scrapyard | Discovered new exit (range 15) 206 | -11/Scrapyard | Entered Materials 306 | -10/Materials | Build established: Mutant 593 | -10/Materials | Discovered new exit (range 3) 830 | -10/Materials | Discovered new exit (range 8) 837 | -10/Materials | Discovered new exit (range 15) 862 | -10/Materials | Discovered new exit (range 12) 1045 | -10/Materials | Discovered new exit (range 9) 1798 | -10/Materials | Central database locked down 2155 | -10/Materials | Repaired Aluminum Leg 2246 | -10/Materials | Repaired Aluminum Leg 2273 | -10/Materials | Repaired Heat Sink 2368 | -10/Materials | Entered Mines 2372 | -10/Mines | Core integrity fell below 50% 2571 | -10/Mines | Build established: Scavenger-Mutant 2585 | -10/Mines | Assembled infested the area 2629 | -10/Mines | Core integrity fell below 20% 2632 | -10/Mines | Destroyed by D-53 Grenadier with Mini Grenade Launcher Last Messages --------------- 02399_ U-05 Engineer lays Concrete. 02405_ K-01 Serf collects debris. 02420_ K-01 Serf cleans the Seismic Survey Station. 02431_ U-05 Engineer builds a Wall. 02435_ U-05 Engineer lays Concrete. 02514_ K-01 Serf cleans the Seismic Survey Station. 02585_ ALERT: Infestation in the mines, dispatching Demolisher response squad. 02621_ K-01 Serf collects debris. 02624_ C-45 Heavy ARC bursts open, deploying its payload. 02624_ D-53 Grenadier unfolds itself. 02624_ T-07 Excavator destroyed. 02624_ K-01 Serf collects debris. 02627_ The unstable cave ceiling collapses. 02628_ as-89784 destroyed. 02629_ K-01 Serf collects debris. 02629_ K-01 Serf destroyed. 02631_ The unstable cave ceiling collapses. 02631_ Heat Sink destroyed. Map ----- +----------------------------------------------------+ | ???????????????????????????????????????? #?????? | | ????????????????????????????????????????# #?????? | | ????????????????????????????????????????# #?????? | | ????????????????????????????????????????# #?????? | | ????????????????????????????????????????# #?????? | | ????????????????????????????????????????# #?????? | | ????????????????????????????????????????# #?????? | | ????????????????????????????????????????# #?????? | | ?????????????????? ?????????????###?????# #?????? | | ?????????????????? #??????????## ##???## ####??? | | ????????????????? #?????????# ##??# #??? | | ????????????????? ##?????### #??# """ #??? | | ????????????????# #????# ## #??# """ #??? | | ????????????????# #???# ## #??# """ #??? | | ????????????????# ###### #### #??? | | ?????????????????# #??? | | ??????????????????# #??? | | ???????????????????# ######## #??? | | ???????????????????# ######??# #??? | | ???????????????# ### ###??????## #####??? | | ????????????????##### ## dt ##??????# #??????? | | ?????????????????????## #??????# ######## | | ?????????????????????# d #??????# | | ?????????????????????## ##?????#### #### | | ????????????????#"!|"# ##?????### #??# | | ????????????????""||""Y @ # #?????# #??# | | ???????????????# Y # #?????# #??# | | ???????????????## !%??# ##????## #??# | | ???????????????###++#### # #????## ##?# | | ???????????????# # #### ###????# ### | | ??????????? ### ### ###??????# | | ??????????? ## #????????## | | ???????????? ## #?????????##### | | ????????????????# #?????????????## | | ?????????????????# #??????????????## # | | ?????????????????# #######???????????????#### | | ?????????????????# ??????????????????????????? | | ?????????????????# ????????????????????????????? | | ?????????????????## ????????????????????????????? | | ?????????????????????????????????????????????????? | | ?????????????????????????????????????????????????? | | ?????????????????????????????????????????????????? | | ?????????????????????????????????????????????????? | | ?????????????????????????????????????????????????? | | ?????????????????????????????????????????????????? | | ?????????????????????????????????????????????????? | | ?????????????????????????????????????????????????? | | ?????????????????????????????????????????????????? | | ?????????????????????????????????????????????????? | | ?????????????????????????????????????????????????? | +----------------------------------------------------+ Best States ------------- Heat Dissipation 35 Energy Generation 10 Energy Capacity 250 Matter Stores 300 Matter Capacity 300 Sight Range 16 Terrain Scan Range 16 Terrain Scan Density 10 Weapon Shielding 33 Evasion (%) 55 Item Schematics ----------------- None Robot Schematics ------------------ O-16 Technician | -10/Materials | Hacked Fabricated ------------ Nothing Repaired ---------- Aluminum Leg | 60% | -10/Materials Aluminum Leg | 93% | -10/Materials Heat Sink | 83% | -10/Materials Studied --------- None Alien Tech Used ----------------- None Achievements -------------- None Challenges ------------ None Game ------ Seed AngularHardenedSink Manual? 0 Play Time 00:20:35 Cumulative 680.7 hours Start 2025.11.12 @ 00:24:30 End 2025.11.12 @ 00:45:55 Sessions 1 Manual Loads 0 Difficulty Rogue Special Mode None Game No. 478 Rogue 478 Adventurer 0 Explorer 0 Win Type - Total 1 Types 1/0/0/0/0/0/0/0/0/0 Lore% 62 Gallery% 66 Achievement% 40 Wizard Run 0 Options --------- Layout 1 ASCII 0 Keyboard 0 Movement Mouse Keybinds 0 Fullscreen 1 Font 20/SmallcapsGlow Map View 54x42 Zoom Use 0% Tactical HUD 1 Map Filters NONE Filters NONE Steam 1 RUN: 95fcd206-cb9d-49b6-a389-3af177e20541